[Event "9th RTU Rapid 2019"]
[Site "Riga"]
[Date "2019.08.04"]
[Round "3.32"]
[White "Mulevicius, Andrius"]
[Black "Petrovskis, Olegs"]
[Result "1/2-1/2"]
[WhiteElo "1808"]
[BlackElo "2147"]
[PlyCount "68"]
[EventDate "2019.08.05"]
[EventType "swiss"]
[EventCountry "LAT"]
[TimeControl "5400+30"]
[WhiteClock "0:09:16"]
[BlackClock "0:00:14"]

1. e4 {[%emt 1:15:21]} c5 {[%emt 1:15:21]} 2. d3 {[%emt 0:00:26]} Nc6 {[%emt 0:00:27]} 3. Nd2 {[%emt 0:00:26]} g6 {[%emt 0:00:28]} 4. g3 {[%emt 0:00:26]} Bg7 {[%emt 0:00:25]} 5. Bg2 {[%emt 0:00:25]} d6 {[%emt 0:00:26]} 6. Ne2 {[%emt 0:00:27]} e6 {[%emt 0:00:26]} 7. O-O {[%emt 0:00:27]} Nge7 {[%emt 0:00:26]} 8. c3 {[%emt 0:00:37]} O-O {[%emt 0:00:28]} 9. f4 {[%emt 0:00:34]} Rb8 {[%emt 0:00:48]} 10. g4 {[%emt 0:01:53]} f5 {[%emt 0:00:27]} 11. exf5 {[%emt 0:01:01]} exf5 {[%emt 0:00:27]} 12. g5 {[%emt 0:02:15]} Be6 {[%emt 0:00:29]} 13. Ng3 {[%emt 0:01:16]} Bf7 {[%emt 0:00:34]} 14. Nf3 {[%emt 0:02:43]} Re8 {[%emt 0:00:29]} 15. Bd2 {[%emt 0:02:05]} Qb6 {[%emt 0:00:33]} 16. b3 {[%emt 0:01:57]} Nd5 {[%emt 0:00:42]} 17. Qc2 {[%emt 0:00:41]} Ne3 {[%emt 0:00:37]} 18. Bxe3 {[%emt 0:00:30]} Rxe3 {[%emt 0:00:26]} 19. Rae1 {[%emt 0:00:57]} Rbe8 {[%emt 0:00:26]} 20. Rxe3 {[%emt 0:01:35]} Rxe3 {[%emt 0:00:28]} 21. Kh1 {[%emt 0:02:06]} Qa5 {[%emt 0:01:28]} 22. Rc1 {[%emt 0:00:44]} Ne7 {[%emt 0:01:48]} 23. Nf1 {[%emt 0:00:47]} Re6 {[%emt 0:01:51]} 24. c4 {[%emt 0:01:39]} Nc6 {[%emt 0:00:46]} 25. Qd2 {[%emt 0:00:34]} Qxd2 {[%emt 0:01:09]} 26. N1xd2 {[%emt 0:00:33]} Re3 {[%emt 0:00:29]} 27. Bf1 {[%emt 0:00:34]} Nb4 {[%emt 0:00:29]} 28. Re1 {[%emt 0:00:34]} Rxe1 {[%emt 0:00:52]} 29. Nxe1 {[%emt 0:00:25]} Nxa2 {[%emt 0:00:28]} 30. Bg2 {[%emt 0:00:30]} b6 {[%emt 0:00:45]} 31. Nc2 {[%emt 0:00:36]} Nc1 {[%emt 0:00:48]} 32. Bf1 {[%emt 0:00:47]} Bc3 {[%emt 0:00:29]} 33. Nb1 {[%emt 0:00:26]} Be1 {[%emt 0:00:55]} 34. Nxe1 {[%emt 0:00:29]} Nxb3 {[%emt 0:00:34]} 1/2-1/2

[Event "9th RTU Rapid 2019"]
[Site "Riga"]
[Date "2019.08.04"]
[Round "3.33"]
[White "Ivanisvili, Andrejs"]
[Black "Rakshitta Ravi"]
[Result "0-1"]
[WhiteElo "2144"]
[BlackElo "2112"]
[PlyCount "124"]
[EventDate "2019.08.05"]
[EventType "swiss"]
[EventCountry "LAT"]
[TimeControl "5400+30"]
[WhiteClock "0:01:14"]
[BlackClock "0:01:10"]

1. g3 {[%emt 1:15:21]} e5 {[%emt 1:15:26]} 2. Bg2 {[%emt 0:00:28]} d5 {[%emt 0:00:30]} 3. d3 {[%emt 0:00:29]} Nc6 {[%emt 0:00:27]} 4. Nd2 {[%emt 0:00:28]} g6 {[%emt 0:00:30]} 5. e4 {[%emt 0:00:31]} Nge7 {[%emt 0:00:56]} 6. Ne2 {[%emt 0:01:44]} Bg7 {[%emt 0:00:26]} 7. O-O {[%emt 0:00:28]} O-O {[%emt 0:00:28]} 8. exd5 {[%emt 0:02:34]} Nxd5 {[%emt 0:00:27]} 9. Ne4 {[%emt 0:00:28]} h6 {[%emt 0:01:07]} 10. N2c3 {[%emt 0:00:47]} Nxc3 {[%emt 0:00:36]} 11. Nxc3 {[%emt 0:00:41]} Nd4 {[%emt 0:00:31]} 12. Be3 {[%emt 0:00:43]} c6 {[%emt 0:00:28]} 13. Qd2 {[%emt 0:00:52]} Kh7 {[%emt 0:00:39]} 14. f4 {[%emt 0:00:50]} exf4 {[%emt 0:01:22]} 15. Bxf4 {[%emt 0:00:27]} Qb6 {[%emt 0:00:36]} 16. Kh1 {[%emt 0:05:11]} Qxb2 {[%emt 0:00:34]} 17. Ne4 {[%emt 0:02:17]} Be6 {[%emt 0:04:00]} 18. Rac1 {[%emt 0:02:51]} Rfd8 {[%emt 0:03:04]} 19. Be3 {[%emt 0:00:52]} Nf5 {[%emt 0:00:46]} 20. Rb1 {[%emt 0:00:45]} Qxa2 {[%emt 0:00:28]} 21. Bg1 {[%emt 0:01:04]} b6 {[%emt 0:01:21]} 22. g4 {[%emt 0:00:40]} Nh4 {[%emt 0:00:52]} 23. Bh3 {[%emt 0:00:27]} Qd5 {[%emt 0:00:40]} 24. Bf2 {[%emt 0:00:36]} Nf3 {[%emt 0:00:48]} 25. Qe2 {[%emt 0:00:33]} Nd4 {[%emt 0:00:36]} 26. Bxd4 {[%emt 0:00:34]} Qxd4 {[%emt 0:00:32]} 27. Rf3 {[%emt 0:00:35]} Bd5 {[%emt 0:00:42]} 28. Rbf1 {[%emt 0:00:27]} Rf8 {[%emt 0:00:51]} 29. g5 {[%emt 0:00:33]} h5 {[%emt 0:00:41]} 30. Bg2 {[%emt 0:00:26]} Rae8 {[%emt 0:00:49]} 31. Rh3 {[%emt 0:00:27]} Kg8 {[%emt 0:00:35]} 32. Bf3 {[%emt 0:00:33]} Qe5 {[%emt 0:00:50]} 33. Qg2 {[%emt 0:00:36]} a5 {[%emt 0:01:01]} 34. c4 {[%emt 0:00:26]} Be6 {[%emt 0:00:31]} 35. Rh4 {[%emt 0:00:26]} Bf5 {[%emt 0:00:32]} 36. d4 {[%emt 0:00:43]} Qe7 {[%emt 0:01:28]} 37. d5 {[%emt 0:00:26]} cxd5 {[%emt 0:00:27]} 38. cxd5 {[%emt 0:00:01]} a4 {[%emt 0:00:55]} 39. Ng3 {[%emt 0:00:53]} Qxg5 {[%emt 0:00:44]} 40. Rxa4 {[%emt 0:00:34]} Bd3 {[%emt 0:00:35]} 41. Rd1 {[%emt 0:00:30]} Re3 {[%emt 0:00:48]} 42. h4 {[%emt 0:00:27]} Qe5 {[%emt 0:00:29]} 43. Rf1 {[%emt 0:00:31]} Bxf1 {[%emt 0:00:31]} 44. Nxf1 {[%emt 0:00:27]} Re1 {[%emt 0:00:30]} 45. Re4 {[%emt 0:00:34]} Rxe4 {[%emt 0:00:27]} 46. Bxe4 {[%emt 0:00:26]} Re8 {[%emt 0:00:26]} 47. Ng3 {[%emt 0:00:26]} Qa1+ {[%emt 0:00:32]} 48. Nf1 {[%emt 0:00:28]} Qe1 {[%emt 0:00:30]} 49. Bf3 {[%emt 0:00:26]} b5 {[%emt 0:00:29]} 50. d6 {[%emt 0:00:27]} Qxh4+ {[%emt 0:00:30]} 51. Qh2 {[%emt 0:00:28]} Qxh2+ {[%emt 0:00:28]} 52. Nxh2 {[%emt 0:00:27]} Rd8 {[%emt 0:00:26]} 53. Bc6 {[%emt 0:00:28]} Rxd6 {[%emt 0:00:26]} 54. Bxb5 {[%emt 0:00:26]} Be5 {[%emt 0:00:31]} 55. Nf3 {[%emt 0:00:26]} Bf4 {[%emt 0:00:27]} 56. Kg2 {[%emt 0:00:27]} g5 {[%emt 0:00:27]} 57. Bc4 {[%emt 0:00:28]} g4 {[%emt 0:00:28]} 58. Nh4 {[%emt 0:00:26]} Rd2+ {[%emt 0:00:26]} 59. Kf1 {[%emt 0:00:27]} g3 {[%emt 0:00:35]} 60. Ng2 {[%emt 0:00:26]} Rf2+ {[%emt 0:00:30]} 61. Kg1 {[%emt 0:00:26]} Rc2 {[%emt 0:00:32]} 62. Kf1 {[%emt 0:00:26]} Rxc4 {[%emt 0:00:27]} 0-1

[Event "9th RTU Rapid 2019"]
[Site "Riga"]
[Date "2019.08.04"]
[Round "4.1"]
[White "Svane, Rasmus"]
[Black "Maltsevskaya, Aleksandra"]
[Result "1-0"]
[WhiteElo "2612"]
[BlackElo "2321"]
[PlyCount "169"]
[EventDate "2019.08.05"]
[EventType "swiss"]
[EventCountry "LAT"]
[TimeControl "5400+30"]
[WhiteClock "0:00:15"]
[BlackClock "0:00:24"]

1. Nf3 {[%emt 1:15:22]} Nf6 {[%emt 1:15:23]} 2. c4 {[%emt 0:00:27]} g6 {[%emt 0:00:28]} 3. Nc3 {[%emt 0:00:28]} Bg7 {[%emt 0:00:27]} 4. e4 {[%emt 0:00:40]} d6 {[%emt 0:00:27]} 5. d4 {[%emt 0:00:27]} O-O {[%emt 0:00:28]} 6. Be2 {[%emt 0:00:27]} e5 {[%emt 0:00:27]} 7. O-O {[%emt 0:00:28]} Nc6 {[%emt 0:00:27]} 8. dxe5 {[%emt 0:00:28]} dxe5 {[%emt 0:00:29]} 9. Bg5 {[%emt 0:00:27]} Qxd1 {[%emt 0:00:32]} 10. Rfxd1 {[%emt 0:00:27]} h6 {[%emt 0:00:41]} 11. Be3 {[%emt 0:00:53]} Bg4 {[%emt 0:00:36]} 12. h3 {[%emt 0:00:41]} Bxf3 {[%emt 0:00:27]} 13. Bxf3 {[%emt 0:00:28]} Rfd8 {[%emt 0:00:44]} 14. Nd5 {[%emt 0:00:36]} Nxd5 {[%emt 0:01:54]} 15. cxd5 {[%emt 0:00:28]} Nd4 {[%emt 0:00:31]} 16. Rac1 {[%emt 0:00:28]} Rd7 {[%emt 0:03:32]} 17. Bg4 {[%emt 0:05:12]} Re7 {[%emt 0:05:22]} 18. Rc4 {[%emt 0:02:26]} h5 {[%emt 0:00:39]} 19. Bf3 {[%emt 0:00:30]} Rd7 {[%emt 0:03:45]} 20. Rdc1 {[%emt 0:01:21]} c6 {[%emt 0:00:26]} 21. dxc6 {[%emt 0:02:03]} Nxc6 {[%emt 0:00:37]} 22. Bd1 {[%emt 0:00:36]} Nd4 {[%emt 0:01:12]} 23. Kf1 {[%emt 0:01:02]} Rad8 {[%emt 0:00:30]} 24. Rc8 {[%emt 0:02:03]} Kh7 {[%emt 0:01:00]} 25. Rxd8 {[%emt 0:00:30]} Rxd8 {[%emt 0:00:27]} 26. Be2 {[%emt 0:00:45]} Rd7 {[%emt 0:00:34]} 27. Bc4 {[%emt 0:00:40]} Bh6 {[%emt 0:01:15]} 28. Rc3 {[%emt 0:01:34]} Bxe3 {[%emt 0:00:29]} 29. fxe3 {[%emt 0:00:26]} Ne6 {[%emt 0:00:29]} 30. Ke2 {[%emt 0:00:45]} Kg7 {[%emt 0:00:26]} 31. Bxe6 {[%emt 0:00:53]} fxe6 {[%emt 0:00:27]} 32. a4 {[%emt 0:01:03]} Kf6 {[%emt 0:00:34]} 33. Rc5 {[%emt 0:00:37]} Rd6 {[%emt 0:00:30]} 34. b4 {[%emt 0:00:36]} Ra6 {[%emt 0:00:35]} 35. a5 {[%emt 0:00:29]} b6 {[%emt 0:00:30]} 36. Rb5 {[%emt 0:00:56]} bxa5 {[%emt 0:00:27]} 37. bxa5 {[%emt 0:00:27]} Rc6 {[%emt 0:00:28]} 38. Kf3 {[%emt 0:00:35]} Rd6 {[%emt 0:00:36]} 39. h4 {[%emt 0:00:30]} Rc6 {[%emt 0:00:28]} 40. g3 {[%emt 0:00:33]} Ra6 {[%emt 0:00:27]} 41. Rc5 {[%emt 0:00:27]} Rd6 {[%emt 0:00:28]} 42. Ke2 {[%emt 0:00:26]} a6 {[%emt 0:00:35]} 43. Rc8 {[%emt 0:00:38]} Kf7 {[%emt 0:00:33]} 44. Rb8 {[%emt 0:00:28]} Ke7 {[%emt 0:00:29]} 45. Rg8 {[%emt 0:00:30]} Kf7 {[%emt 0:00:26]} 46. Rb8 {[%emt 0:00:28]} Ke7 {[%emt 0:00:26]} 47. Rc8 {[%emt 0:00:33]} Rd7 {[%emt 0:00:39]} 48. Rg8 {[%emt 0:00:28]} Kf7 {[%emt 0:00:28]} 49. Rb8 {[%emt 0:00:28]} Ke7 {[%emt 0:00:32]} 50. Rb1 {[%emt 0:00:31]} Rc7 {[%emt 0:00:28]} 51. Rb6 {[%emt 0:00:27]} Ra7 {[%emt 0:00:30]} 52. Kd3 {[%emt 0:00:27]} Kd7 {[%emt 0:00:30]} 53. Kc3 {[%emt 0:00:27]} Rc7+ {[%emt 0:00:27]} 54. Kd2 {[%emt 0:00:30]} Rc6 {[%emt 0:00:28]} 55. Rb7+ {[%emt 0:00:30]} Rc7 {[%emt 0:00:26]} 56. Rb8 {[%emt 0:00:27]} Rc8 {[%emt 0:00:30]} 57. Rb1 {[%emt 0:00:38]} Rc5 {[%emt 0:00:27]} 58. Rb7+ {[%emt 0:00:26]} Rc7 {[%emt 0:00:31]} 59. Rb8 {[%emt 0:00:32]} Rc8 {[%emt 0:00:33]} 60. Rb1 {[%emt 0:00:33]} Rc5 {[%emt 0:00:27]} 61. Rb7+ {[%emt 0:00:37]} Rc7 {[%emt 0:00:26]} 62. Rb1 {[%emt 0:00:27]} Rc5 {[%emt 0:00:26]} 63. Rf1 {[%emt 0:00:29]} Rxa5 {[%emt 0:00:43]} 64. Rf6 {[%emt 0:00:30]} Ra2+ {[%emt 0:00:29]} 65. Kd3 {[%emt 0:00:30]} Ra3+ {[%emt 0:00:27]} 66. Ke2 {[%emt 0:00:28]} Ra2+ {[%emt 0:00:27]} 67. Kd3 {[%emt 0:00:28]} Ra3+ {[%emt 0:00:26]} 68. Ke2 {[%emt 0:00:26]} Ra2+ {[%emt 0:00:26]} 69. Kf3 {[%emt 0:00:39]} a5 {[%emt 0:00:43]} 70. Rxg6 {[%emt 0:00:26]} a4 {[%emt 0:00:26]} 71. Rg5 {[%emt 0:00:26]} a3 {[%emt 0:00:37]} 72. Rxh5 {[%emt 0:00:27]} Ra1 {[%emt 0:00:26]} 73. Rh7+ {[%emt 0:00:34]} Kc6 {[%emt 0:00:34]} 74. Ra7 {[%emt 0:00:27]} Kb6 {[%emt 0:00:32]} 75. Ra8 {[%emt 0:00:27]} a2 {[%emt 0:00:35]} 76. Kg2 {[%emt 0:00:28]} Re1 {[%emt 0:00:30]} 77. Rxa2 {[%emt 0:00:33]} Rxe3 {[%emt 0:00:26]} 78. h5 {[%emt 0:00:30]} Rxe4 {[%emt 0:00:29]} 79. h6 {[%emt 0:00:27]} Rd4 {[%emt 0:00:27]} 80. Ra8 {[%emt 0:00:33]} Rd7 {[%emt 0:00:28]} 81. g4 {[%emt 0:00:33]} Kc5 {[%emt 0:00:37]} 82. g5 {[%emt 0:00:27]} Kd4 {[%emt 0:00:27]} 83. g6 {[%emt 0:00:28]} Ke4 {[%emt 0:00:26]} 84. g7 {[%emt 0:00:29]} Rd2+ {[%emt 0:00:33]} 85. Kg1 {[%emt 0:00:36]} 1-0

[Event "9th RTU Rapid 2019"]
[Site "Riga"]
[Date "2019.08.04"]
[Round "4.2"]
[White "Suleymenov, Alisher"]
[Black "Pultinevicius, Paulius"]
[Result "0-1"]
[WhiteElo "2348"]
[BlackElo "2501"]
[PlyCount "58"]
[EventDate "2019.08.05"]
[EventType "swiss"]
[EventCountry "LAT"]
[TimeControl "5400+30"]
[WhiteClock "0:07:58"]
[BlackClock "0:00:10"]

1. d4 {[%emt 1:15:21]} Nf6 {[%emt 1:15:21]} 2. c4 {[%emt 0:00:25]} g6 {[%emt 0:00:26]} 3. Nc3 {[%emt 0:00:28]} d5 {[%emt 0:00:26]} 4. Nf3 {[%emt 0:00:26]} Bg7 {[%emt 0:00:25]} 5. h4 {[%emt 0:00:27]} h6 {[%emt 0:00:42]} 6. Bf4 {[%emt 0:06:08]} O-O {[%emt 0:00:34]} 7. Rc1 {[%emt 0:00:40]} c6 {[%emt 0:00:46]} 8. e3 {[%emt 0:03:22]} dxc4 {[%emt 0:01:29]} 9. Bxc4 {[%emt 0:00:31]} Bg4 {[%emt 0:00:27]} 10. O-O {[%emt 0:02:41]} Nbd7 {[%emt 0:00:37]} 11. Qc2 {[%emt 0:00:35]} Bxf3 {[%emt 0:00:39]} 12. gxf3 {[%emt 0:00:34]} e6 {[%emt 0:00:26]} 13. Kg2 {[%emt 0:01:11]} Nh5 {[%emt 0:00:41]} 14. Bg3 {[%emt 0:00:34]} Nxg3 {[%emt 0:00:45]} 15. fxg3 {[%emt 0:00:26]} c5 {[%emt 0:00:41]} 16. dxc5 {[%emt 0:00:44]} Nxc5 {[%emt 0:00:27]} 17. Rfd1 {[%emt 0:00:44]} Qb6 {[%emt 0:00:40]} 18. a3 {[%emt 0:01:22]} a5 {[%emt 0:00:35]} 19. Nb5 {[%emt 0:00:52]} a4 {[%emt 0:00:59]} 20. Rd6 {[%emt 0:00:39]} Qa5 {[%emt 0:00:27]} 21. Rcd1 {[%emt 0:00:50]} Be5 {[%emt 0:01:19]} 22. R6d2 {[%emt 0:01:28]} Rac8 {[%emt 0:00:37]} 23. h5 {[%emt 0:00:33]} gxh5 {[%emt 0:00:40]} 24. Nd6 {[%emt 0:00:45]} Rc7 {[%emt 0:01:52]} 25. Nb5 {[%emt 0:00:32]} Rc6 {[%emt 0:02:06]} 26. Nd4 {[%emt 0:00:28]} Rcc8 {[%emt 0:00:46]} 27. Rh1 {[%emt 0:00:30]} Nb3 {[%emt 0:00:42]} 28. Nxb3 {[%emt 0:00:27]} axb3 {[%emt 0:00:27]} 29. Qd3 {[%emt 0:00:37]} Rfd8 {[%emt 0:00:30]} 0-1

[Event "9th RTU Rapid 2019"]
[Site "Riga"]
[Date "2019.08.04"]
[Round "4.3"]
[White "Miedema, David"]
[Black "Wagner, Dennis"]
[Result "1/2-1/2"]
[WhiteElo "2313"]
[BlackElo "2473"]
[PlyCount "198"]
[EventDate "2019.08.05"]
[EventType "swiss"]
[EventCountry "LAT"]
[TimeControl "5400+30"]
[WhiteClock "0:00:13"]
[BlackClock "0:00:26"]

1. e4 {[%emt 1:15:23]} e5 {[%emt 1:15:21]} 2. Nf3 {[%emt 0:00:26]} Nc6 {[%emt 0:00:26]} 3. Bb5 {[%emt 0:00:27]} a6 {[%emt 0:00:26]} 4. Ba4 {[%emt 0:00:25]} Nf6 {[%emt 0:00:27]} 5. O-O {[%emt 0:00:27]} Be7 {[%emt 0:00:26]} 6. Re1 {[%emt 0:00:26]} b5 {[%emt 0:00:26]} 7. Bb3 {[%emt 0:00:25]} O-O {[%emt 0:00:27]} 8. a4 {[%emt 0:00:26]} b4 {[%emt 0:00:29]} 9. d4 {[%emt 0:00:27]} d6 {[%emt 0:00:26]} 10. dxe5 {[%emt 0:00:26]} dxe5 {[%emt 0:00:27]} 11. Nbd2 {[%emt 0:00:33]} Bc5 {[%emt 0:00:28]} 12. Qe2 {[%emt 0:00:45]} Qe7 {[%emt 0:00:30]} 13. Bd5 {[%emt 0:00:36]} Nxd5 {[%emt 0:00:30]} 14. exd5 {[%emt 0:00:27]} Nd4 {[%emt 0:00:27]} 15. Nxd4 {[%emt 0:00:28]} Bxd4 {[%emt 0:00:27]} 16. Nb3 {[%emt 0:01:18]} Qd6 {[%emt 0:01:28]} 17. Nxd4 {[%emt 0:01:13]} exd4 {[%emt 0:00:27]} 18. Qe5 {[%emt 0:01:02]} Bb7 {[%emt 0:01:00]} 19. Qxd4 {[%emt 0:01:02]} Qxd5 {[%emt 0:03:06]} 20. Qxd5 {[%emt 0:00:27]} Bxd5 {[%emt 0:00:26]} 21. Bf4 {[%emt 0:00:46]} b3 {[%emt 0:01:04]} 22. cxb3 {[%emt 0:00:36]} Rfe8 {[%emt 0:01:50]} 23. Bxc7 {[%emt 0:01:38]} Bxb3 {[%emt 0:00:27]} 24. Be5 {[%emt 0:00:37]} f6 {[%emt 0:00:36]} 25. Ra3 {[%emt 0:01:06]} Rab8 {[%emt 0:03:13]} 26. Bc3 {[%emt 0:00:32]} Rxe1+ {[%emt 0:00:28]} 27. Bxe1 {[%emt 0:00:26]} Kf7 {[%emt 0:00:43]} 28. f3 {[%emt 0:00:27]} h5 {[%emt 0:00:28]} 29. Kf2 {[%emt 0:00:36]} Ke6 {[%emt 0:01:24]} 30. Ra1 {[%emt 0:00:35]} Kd5 {[%emt 0:00:47]} 31. Bc3 {[%emt 0:00:37]} Re8 {[%emt 0:00:26]} 32. a5 {[%emt 0:00:39]} Re7 {[%emt 0:02:25]} 33. g4 {[%emt 0:01:05]} hxg4 {[%emt 0:00:33]} 34. fxg4 {[%emt 0:00:26]} Re4 {[%emt 0:01:06]} 35. g5 {[%emt 0:00:45]} fxg5 {[%emt 0:00:38]} 36. Rg1 {[%emt 0:00:27]} g4 {[%emt 0:00:33]} 37. Bxg7 {[%emt 0:00:30]} Kc4 {[%emt 0:00:43]} 38. Kg3 {[%emt 0:01:04]} Kb5 {[%emt 0:00:45]} 39. Bc3 {[%emt 0:00:35]} Be6 {[%emt 0:00:32]} 40. Rg2 {[%emt 0:00:46]} Re3+ {[%emt 0:00:29]} 41. Kf4 {[%emt 0:00:28]} Rf3+ {[%emt 0:00:29]} 42. Ke5 {[%emt 0:00:36]} Re3+ {[%emt 0:00:39]} 43. Kf4 {[%emt 0:00:27]} Rf3+ {[%emt 0:00:26]} 44. Ke4 {[%emt 0:00:26]} Kc4 {[%emt 0:00:53]} 45. Rd2 {[%emt 0:01:02]} Bf5+ {[%emt 0:00:30]} 46. Ke5 {[%emt 0:00:26]} Bd3 {[%emt 0:00:44]} 47. Rg2 {[%emt 0:00:55]} Bf5 {[%emt 0:00:37]} 48. Bd2 {[%emt 0:00:30]} Bc8 {[%emt 0:00:42]} 49. Bc3 {[%emt 0:01:35]} Bf5 {[%emt 0:00:30]} 50. Kd6 {[%emt 0:00:39]} Kb5 {[%emt 0:00:30]} 51. Re2 {[%emt 0:00:31]} Rd3+ {[%emt 0:00:37]} 52. Ke5 {[%emt 0:00:30]} Bd7 {[%emt 0:00:28]} 53. Kf4 {[%emt 0:01:01]} Rf3+ {[%emt 0:00:27]} 54. Ke5 {[%emt 0:00:33]} Rf5+ {[%emt 0:00:35]} 55. Kd6 {[%emt 0:00:33]} Bc6 {[%emt 0:00:26]} 56. Be5 {[%emt 0:00:32]} Rf1 {[%emt 0:00:44]} 57. Bd4 {[%emt 0:00:49]} Rf5 {[%emt 0:00:48]} 58. Bb6 {[%emt 0:00:39]} Bf3 {[%emt 0:00:41]} 59. Rf2 {[%emt 0:00:58]} Rd5+ {[%emt 0:00:28]} 60. Ke6 {[%emt 0:00:27]} Rh5 {[%emt 0:00:27]} 61. Rd2 {[%emt 0:00:45]} Rh6+ {[%emt 0:00:29]} 62. Kf5 {[%emt 0:00:29]} Rh5+ {[%emt 0:00:27]} 63. Kf4 {[%emt 0:00:26]} Rh7 {[%emt 0:00:33]} 64. Bd8 {[%emt 0:00:45]} Rf7+ {[%emt 0:00:41]} 65. Kg3 {[%emt 0:00:26]} Rf5 {[%emt 0:00:34]} 66. Rd3 {[%emt 0:00:49]} Be2 {[%emt 0:00:37]} 67. Rd2 {[%emt 0:01:00]} Bf3 {[%emt 0:00:34]} 68. Bc7 {[%emt 0:00:33]} Rf7 {[%emt 0:00:47]} 69. Bd8 {[%emt 0:00:34]} Rh7 {[%emt 0:00:29]} 70. Kf4 {[%emt 0:01:58]} Rf7+ {[%emt 0:00:29]} 71. Kg5 {[%emt 0:00:44]} Rh7 {[%emt 0:00:31]} 72. Rf2 {[%emt 0:00:52]} Rd7 {[%emt 0:00:33]} 73. Bb6 {[%emt 0:00:26]} Rd5+ {[%emt 0:00:28]} 74. Kf4 {[%emt 0:00:32]} Rh5 {[%emt 0:00:33]} 75. Rd2 {[%emt 0:00:37]} Rh7 {[%emt 0:00:26]} 76. Ke3 {[%emt 0:00:38]} Kc6 {[%emt 0:00:27]} 77. Bd8 {[%emt 0:00:28]} Kb5 {[%emt 0:00:32]} 78. Rc2 {[%emt 0:00:41]} Rh3 {[%emt 0:00:35]} 79. Kf4 {[%emt 0:00:39]} Rh7 {[%emt 0:00:31]} 80. Bb6 {[%emt 0:00:48]} Rh5 {[%emt 0:00:26]} 81. Rd2 {[%emt 0:00:30]} Rh7 {[%emt 0:00:32]} 82. Kg5 {[%emt 0:00:34]} Rg7+ {[%emt 0:00:31]} 83. Kf6 {[%emt 0:00:27]} Rh7 {[%emt 0:00:27]} 84. Kg6 {[%emt 0:00:27]} Be4+ {[%emt 0:00:26]} 85. Kg5 {[%emt 0:00:27]} Bf3 {[%emt 0:00:26]} 86. Rc2 {[%emt 0:00:29]} Kb4 {[%emt 0:00:39]} 87. Bc7 {[%emt 0:00:31]} Kb3 {[%emt 0:00:33]} 88. Rc3+ {[%emt 0:00:45]} Kxb2 {[%emt 0:00:28]} 89. Be5 {[%emt 0:00:27]} Ka2 {[%emt 0:00:35]} 90. Rd3 {[%emt 0:00:35]} Rb7 {[%emt 0:00:32]} 91. Kf4 {[%emt 0:00:31]} Rb4+ {[%emt 0:00:26]} 92. Kg3 {[%emt 0:00:28]} Rb5 {[%emt 0:00:27]} 93. Bc3 {[%emt 0:00:31]} Rb3 {[%emt 0:00:31]} 94. h4 {[%emt 0:00:36]} gxh3 {[%emt 0:00:29]} 95. Kxf3 {[%emt 0:00:27]} Kb1 {[%emt 0:00:26]} 96. Re3 {[%emt 0:00:41]} h2 {[%emt 0:00:41]} 97. Kg2 {[%emt 0:00:36]} Kc2 {[%emt 0:00:28]} 98. Bd4 {[%emt 0:00:27]} Rxe3 {[%emt 0:00:31]} 99. Bxe3 {[%emt 0:00:26]} Kd3 {[%emt 0:00:26]} 1/2-1/2

[Event "9th RTU Rapid 2019"]
[Site "Riga"]
[Date "2019.08.04"]
[Round "4.4"]
[White "Kantans, Toms"]
[Black "Lavendelis, Egons"]
[Result "1-0"]
[WhiteElo "2471"]
[BlackElo "2292"]
[PlyCount "105"]
[EventDate "2019.08.05"]
[EventType "swiss"]
[EventCountry "LAT"]
[TimeControl "5400+30"]
[WhiteClock "0:00:12"]
[BlackClock "0:00:22"]

1. e4 {[%emt 1:15:23]} c5 {[%emt 1:15:21]} 2. Nf3 {[%emt 0:00:29]} Nc6 {[%emt 0:00:26]} 3. Bb5 {[%emt 0:00:28]} g6 {[%emt 0:00:27]} 4. O-O {[%emt 0:00:28]} Bg7 {[%emt 0:00:28]} 5. Nc3 {[%emt 0:00:27]} Nd4 {[%emt 0:01:18]} 6. Nxd4 {[%emt 0:00:29]} cxd4 {[%emt 0:00:26]} 7. Ne2 {[%emt 0:00:26]} a6 {[%emt 0:02:11]} 8. Bd3 {[%emt 0:00:34]} d5 {[%emt 0:01:01]} 9. c3 {[%emt 0:00:33]} dxe4 {[%emt 0:02:03]} 10. Bxe4 {[%emt 0:00:27]} Nf6 {[%emt 0:01:21]} 11. Bf3 {[%emt 0:01:05]} d3 {[%emt 0:00:37]} 12. Ng3 {[%emt 0:00:35]} O-O {[%emt 0:00:38]} 13. Re1 {[%emt 0:00:37]} Rb8 {[%emt 0:01:05]} 14. b3 {[%emt 0:00:36]} b5 {[%emt 0:00:31]} 15. Ba3 {[%emt 0:01:44]} Re8 {[%emt 0:00:28]} 16. Qb1 {[%emt 0:02:20]} Bh6 {[%emt 0:01:06]} 17. Qb2 {[%emt 0:03:22]} Bb7 {[%emt 0:01:13]} 18. Bxb7 {[%emt 0:00:37]} Rxb7 {[%emt 0:00:26]} 19. Bc5 {[%emt 0:02:25]} e5 {[%emt 0:01:27]} 20. f3 {[%emt 0:00:27]} Nd5 {[%emt 0:01:34]} 21. a4 {[%emt 0:00:26]} Qc8 {[%emt 0:02:37]} 22. Bf2 {[%emt 0:00:48]} Qc6 {[%emt 0:02:15]} 23. axb5 {[%emt 0:00:34]} axb5 {[%emt 0:00:33]} 24. Ne4 {[%emt 0:00:54]} Bf8 {[%emt 0:00:57]} 25. b4 {[%emt 0:02:08]} f5 {[%emt 0:01:02]} 26. Nc5 {[%emt 0:00:58]} Bxc5 27. bxc5 {[%emt 0:00:26]} e4 {[%emt 0:00:59]} 28. Qb3 {[%emt 0:01:16]} Kg7 {[%emt 0:00:36]} 29. fxe4 {[%emt 0:00:57]} fxe4 {[%emt 0:00:27]} 30. Bd4+ {[%emt 0:00:32]} Kh6 {[%emt 0:00:27]} 31. Rf1 {[%emt 0:00:59]} e3 {[%emt 0:00:52]} 32. dxe3 {[%emt 0:01:44]} Nxe3 {[%emt 0:00:26]} 33. Rf3 {[%emt 0:00:26]} Nf5 {[%emt 0:00:56]} 34. Rh3+ {[%emt 0:00:42]} Kg5 {[%emt 0:00:26]} 35. Rxd3 {[%emt 0:00:26]} Re2 {[%emt 0:00:29]} 36. Bf2 {[%emt 0:00:27]} Qe4 {[%emt 0:00:32]} 37. Qd5 {[%emt 0:00:37]} Re7 {[%emt 0:00:37]} 38. c6 {[%emt 0:00:57]} Rc2 {[%emt 0:00:33]} 39. h4+ {[%emt 0:00:32]} Kh5 {[%emt 0:00:27]} 40. Qxe4 {[%emt 0:00:30]} Rxe4 {[%emt 0:00:26]} 41. Ra7 {[%emt 0:00:32]} h6 {[%emt 0:00:29]} 42. c7 {[%emt 0:00:27]} Rc4 {[%emt 0:00:27]} 43. Be1 {[%emt 0:00:32]} Nxh4 {[%emt 0:00:30]} 44. Bxh4 {[%emt 0:00:30]} Kxh4 {[%emt 0:00:27]} 45. Rd4+ {[%emt 0:00:29]} Rxd4 {[%emt 0:00:31]} 46. cxd4 {[%emt 0:00:25]} b4 {[%emt 0:00:29]} 47. d5 {[%emt 0:00:33]} b3 {[%emt 0:00:34]} 48. d6 {[%emt 0:00:33]} b2 {[%emt 0:00:29]} 49. Rb7 {[%emt 0:00:26]} Kg3 {[%emt 0:00:28]} 50. Kf1 {[%emt 0:00:26]} h5 {[%emt 0:00:45]} 51. Rxb2 {[%emt 0:00:30]} Rxb2 {[%emt 0:00:03]} 52. c8=Q {[%emt 0:00:28]} Rf2+ {[%emt 0:00:52]} 53. Ke1 {[%emt 0:00:26]} 1-0